bitfinex-derivatives/quotes_ETHF0:USTF0_20240822
["timestamp","ask_amount","ask_price","bid_price","bid_amount"]
[1724326631332,0.7171,2641.3,2641.0,1.10142]
[1724326631519,0.7171,2641.3,2641.0,0.7229]
[1724326631720,0.37851,2641.1,2641.0,0.3585]
[1724326631927,0.37851,2641.1,2640.8,0.37049242]
[1724326631928,4.1635,2641.2,2640.8,0.00389242]
[1724326632123,0.37854,2640.9,2640.8,0.39019242]
[1724326633533,0.37853,2641.0,2640.8,0.39019242]
[1724326633936,0.37854,2640.9,2640.8,0.39019242]
[1724326634135,0.37854,2640.9,2640.8,0.00389242]
[1724326634327,4.16494,2640.9,2640.8,0.00389242]
[1724326634726,5.11129,2640.9,2640.8,0.00389242]
[1724326635028,4.16494,2640.9,2640.8,0.00389242]
[1724326637831,0.37855,2640.8,2640.7,0.00568408]
[1724326638035,5.28495,2640.8,2640.7,0.00568408]
[1724326638537,15.92343344,2640.8,2640.7,0.00568408]
[1724326638837,15.92343344,2640.8,2640.7,0.00854564]
[1724326639027,15.92343344,2640.8,2640.7,0.00286156]
[1724326642537,15.92343344,2640.8,2640.7,0.00018261]
[1724326644137,16.86981344,2640.8,2640.7,0.00018261]
[1724326644543,15.92343344,2640.8,2640.7,0.00018261]
[1724326645435,16.86981344,2640.8,2640.7,0.00018261]
[1724326645746,19.48581344,2640.8,2640.7,0.00018261]
[1724326646438,1.32503,2640.6,2640.5,0.00568408]
[1724326646645,2.41603,2640.6,2640.5,0.00568408]
[1724326646941,11.20323,2640.6,2640.5,0.00568408]
[1724326647435,11.20323,2640.6,2640.5,0.0084792]
[1724326648435,10.11223,2640.6,2640.5,0.0084792]
[1724326649029,5.11223,2640.6,2640.5,0.0084792]
[1724326654239,10.11223,2640.6,2640.5,0.0084792]
[1724326654441,5.11223,2640.6,2640.5,0.0084792]
[1724326656449,11.05868,2640.6,2640.5,0.0084792]
[1724326659040,10.11223,2640.6,2640.5,0.0084792]
[1724326659343,4.16578,2640.6,2640.5,0.0084792]
[1724326659543,3.2078,2640.7,2640.5,0.0084792]
[1724326660253,0.7085,2641.1,2640.5,0.0084792]
[1724326660254,0.37855,2640.8,2640.5,0.0084792]
[1724326661139,0.37857,2640.7,2640.5,0.0084792]
[1724326661346,3.2078,2640.9,2640.5,0.0084792]
[1724326661547,3.58638,2640.6,2640.5,0.0084792]
[1724326661748,7.37358,2640.6,2640.5,0.0084792]
[1724326661948,4.53283,2640.6,2640.5,0.0084792]
[1724326662150,0.37858,2640.6,2640.5,0.0084792]
[1724326664749,0.37857,2640.7,2640.5,0.0084792]
[1724326664950,3.2078,2641.0,2640.5,0.0084792]
[1724326665152,0.37858,2640.6,2640.5,0.0084792]
[1724326666942,0.75738,2640.6,2640.5,0.0084792]
[1724326667144,11.80788,2640.6,2640.5,0.0084792]
[1724326667754,13.2909098,2640.6,2640.5,0.0084792]
[1724326672350,8.2909098,2640.6,2640.5,0.0084792]
[1724326672554,13.2909098,2640.6,2640.5,0.0084792]
[1724326673051,12.3444598,2640.6,2640.5,0.0084792]
[1724326674054,7.3444598,2640.6,2640.5,0.0084792]
[1724326675461,5.86143,2640.6,2640.5,0.0084792]
[1724326675858,8.78521902,2640.6,2640.5,0.0084792]
[1724326678462,6.80788,2640.6,2640.5,0.0084792]
[1724326678659,14.27959633,2640.6,2640.5,0.0084792]
[1724326679058,14.28548658,2640.6,2640.5,0.0084792]
[1724326679260,11.80788,2640.6,2640.5,0.0084792]
[1724326679661,13.70079,2640.6,2640.5,9.2e-06]
[1724326681164,13.32221,2640.6,2640.3,0.00568408]
[1724326681463,13.32221,2640.6,2639.6,0.348]
[1724326681464,0.94662,2640.2,2639.6,0.348]
[1724326681668,0.3787,2639.8,2639.7,0.3812]
[1724326682469,1.47271781,2639.8,2639.7,0.38603226]
[1724326683366,4.68051781,2639.8,2639.7,0.38603226]
[1724326685659,4.30181781,2639.8,2639.7,0.38603226]
[1724326688061,4.30181781,2639.8,2639.7,4.17403226]
[1724326688670,3.21081781,2639.8,2639.7,4.17403226]
[1724326695578,0.00301781,2639.8,2639.7,4.55274226]
[1724326696080,0.00301781,2639.8,2639.7,5.53806252]
[1724326696380,0.00568408,2640.0,2639.7,7.4323167]
[1724326696580,0.00568408,2640.0,2639.7,1.75006252]
[1724326697183,0.01056968,2640.0,2639.7,1.75006252]
[1724326697370,0.01056968,2640.0,2639.8,0.37868]
[1724326697570,0.01056968,2640.0,2639.9,0.3613]
[1724326697772,0.01056968,2640.0,2639.9,4.1493]
[1724326699280,3.2078,2640.3,2640.0,0.37865]
[1724326699487,3.2078,2640.3,2640.1,0.73994]
[1724326699687,3.2078,2640.3,2640.1,5.51326026]
[1724326699876,3.2078,2640.3,2640.2,4.16584]
[1724326700075,1.8658643,2640.6,2640.2,4.16584]
[1724326700284,0.00461311,2640.3,2640.2,3.7872]
[1724326700584,0.00461311,2640.3,2640.1,1.34662026]
[1724326700585,0.00461311,2640.3,2640.1,1.72526026]
[1724326700789,0.38323311,2640.3,2640.1,1.34662026]
[1724326700985,0.00461311,2640.3,2640.1,0.3613]
[1724326701290,0.37864,2640.2,2640.1,0.3613]
[1724326703692,0.00461311,2640.3,2640.1,0.3613]
[1724326704393,0.00461311,2640.3,2640.2,3.7872]
[1724326705091,0.00461311,2640.3,2640.2,4.16584]
[1724326705490,0.00461311,2640.3,2640.2,3.7872]
[1724326707388,0.00461311,2640.3,2640.2,4.16583]
[1724326707697,0.00461311,2640.3,2640.2,4.77252026]
[1724326709186,0.00461311,2640.3,2640.2,5.15115026]
[1724326709392,0.00568408,2640.5,2640.2,12.15913325]
[1724326709596,0.00568408,2640.5,2640.4,0.98830333]
[1724326709990,0.00568408,2640.5,2640.4,5.14420333]
[1724326710396,0.0088804,2640.5,2640.4,5.14420333]
[1724326713593,0.3874704,2640.5,2640.4,5.14420333]
[1724326713994,0.3874704,2640.5,2640.4,0.98830333]
[1724326714195,1.3339604,2640.5,2640.4,0.98830333]
[1724326714389,0.3874704,2640.5,2640.4,0.98830333]
[1724326717697,0.3874704,2640.5,2640.1,1.36910333]
[1724326717897,1.1158,2640.4,2640.1,1.36910333]
[1724326718397,1.1158,2640.4,2640.1,1.73470333]
[1724326718906,1.49441,2640.4,2640.1,1.73470333]
[1724326720500,1.091,2640.3,2640.1,1.73470333]
[1724326721805,1.46962,2640.3,2640.1,1.73470333]
[1724326723404,1.46962,2640.3,2640.1,2.11335333]
[1724326723801,1.46962,2640.3,2640.1,1.12505]
[1724326725000,1.46962,2640.3,2640.1,2.11335333]
[1724326725196,1.4613,2640.4,2640.1,2.82570333]
[1724326725402,1.091,2640.4,2640.2,0.3833]
[1724326726102,1.0998804,2640.5,2640.4,0.37861]
[1724326726405,0.0088804,2640.5,2640.4,0.37861]
[1724326726607,0.0088804,2640.5,2640.4,4.16581]
[1724326729204,0.0088804,2640.5,2640.4,5.25681]
[1724326729399,0.0088804,2640.5,2640.4,6.24511333]
[1724326731214,0.0088804,2640.5,2640.4,5.15411333]
[1724326731507,3.2078,2641.0,2640.4,5.15411333]
[1724326731508,3.58628,2641.3,2640.6,0.94644]
[1724326731713,2.5782743,2641.4,2641.1,0.37849]
[1724326731714,1.46947,2641.4,2641.1,0.37849]
[1724326731916,0.37848,2641.3,2641.2,0.7623]
[1724326732102,1.46947,2641.4,2641.2,0.7623]
[1724326732306,1.47266324,2641.4,2641.2,0.7623]
[1724326734005,4.68046324,2641.4,2641.2,0.7623]
[1724326734416,0.37848,2641.3,2641.2,0.3812]
[1724326735510,3.58946324,2641.4,2641.2,0.3812]
[1724326738220,0.37848,2641.3,2641.2,0.3812]
[1724326738420,0.3569,2641.3,2641.2,0.3812]
[1724326739316,3.21099324,2641.4,2641.2,0.75969]
[1724326739513,3.21099324,2641.4,2641.2,0.3812]
[1724326741421,3.21099324,2641.4,2641.2,0.75969]
[1724326741613,0.00319324,2641.4,2641.2,4.1676]
[1724326742012,0.00319324,2641.4,2641.3,0.37848]
[1724326742423,0.00319324,2641.4,2641.3,4.16408]
[1724326743012,0.00568408,2641.6,2641.4,0.37846]
[1724326743314,0.38411408,2641.6,2641.2,0.75968]
[1724326743619,1.32869408,2641.6,2641.2,0.3812]
[1724326743825,3.2078,2641.4,2641.2,0.3812]
[1724326744018,0.3542,2641.3,2641.2,0.3812]
[1724326744217,0.00451954,2641.4,2641.2,0.75969]
[1724326744421,0.38297954,2641.4,2641.2,0.3812]
[1724326744621,0.38297954,2641.4,2641.2,0.75969]
[1724326745121,0.00451954,2641.4,2641.2,0.75969]
[1724326745321,0.38297954,2641.4,2641.2,0.75969]
[1724326747228,0.38297954,2641.4,2641.2,0.75968]
[1724326747229,0.38298954,2641.4,2641.2,0.75968]
[1724326747424,0.00451954,2641.4,2641.3,0.37848]
[1724326748041,0.00451954,2641.4,2641.3,9.16488]
[1724326748812,0.00451954,2641.4,2641.3,4.16488]
[1724326749421,0.38297954,2641.4,2641.3,3.7864]
[1724326749626,1.33109954,2641.4,2641.0,0.00568408]
[1724326749925,1.33109954,2641.4,2641.0,0.37228408]
[1724326750115,1.33109954,2641.4,2641.0,0.75080408]
[1724326750311,0.37849,2641.2,2641.0,0.75080408]
[1724326750719,0.37849,2641.2,2641.0,4.53720408]
[1724326751028,0.3785,2641.2,2641.0,4.53720408]
[1724326751228,0.3785,2641.2,2641.1,0.37851]
[1724326751625,0.3785,2641.2,2641.0,0.75079408]
[1724326753126,0.3785,2641.2,2641.1,0.37851]
[1724326756834,0.37849,2641.3,2641.1,0.37851]
[1724326757021,0.37849,2641.3,2641.2,0.37849]
[1724326758031,0.37849,2641.3,2641.0,0.37228408]
[1724326758032,0.37849,2641.3,2641.1,0.3785]
[1724326758532,1.09,2641.2,2641.1,0.3785]
[1724326760419,1.46849,2641.2,2641.1,0.3785]
[1724326765637,1.46849,2641.2,2641.0,0.37228408]
[1724326765936,0.37851,2641.1,2641.0,0.75079408]
[1724326766238,1.4685,2641.2,2641.1,0.37851]
[1724326768236,0.37851,2641.1,2641.0,1.35876837]
[1724326768533,0.37851,2641.1,2641.0,0.00568408]
[1724326768534,6.95208,2641.1,2641.0,0.00568408]
[1724326768730,11.10615,2641.1,2641.0,0.00568408]
[1724326768925,11.10615,2641.1,2640.5,0.98648429]
[1724326768926,0.37858,2640.6,2640.5,0.98648429]
[1724326769130,0.37859,2640.5,2640.4,6.28848429]
[1724326769440,1.4738,2640.5,2640.3,2.09919176]
[1724326769637,1.4738,2640.5,2640.4,0.37861]
[1724326769841,0.3838,2640.5,2640.4,5.15329176]
[1724326770244,0.3838,2640.5,2640.4,7.04699995]
[1724326770554,0.3838,2640.5,2640.4,5.15329176]
[1724326771446,0.3838,2640.5,2640.4,1.36609176]
[1724326772843,0.3838,2640.5,2640.4,3.25985298]
[1724326773047,0.3838,2640.5,2640.4,3.25983185]
[1724326773440,0.3838,2640.5,2640.4,3.25984753]
[1724326773845,0.37857,2640.7,2640.5,0.37859]
[1724326773846,1.46857,2640.7,2640.5,0.37859]
[1724326774045,1.46857,2640.7,2640.5,0.74089]
[1724326774238,1.46857,2640.7,2640.5,1.72837176]
[1724326774752,1.46857,2640.7,2640.5,0.74089]
[1724326775343,1.46857,2640.7,2640.5,0.3623]
[1724326775653,1.46857,2640.7,2640.5,0.74089]
[1724326775841,1.46857,2640.7,2640.5,0.3623]
[1724326777051,1.46857,2640.7,2640.4,2.45608176]
[1724326777247,1.09,2640.6,2640.4,2.45608176]
[1724326777442,0.376,2640.5,2640.4,1.36608176]
[1724326781254,0.75459,2640.5,2640.4,1.36608176]
[1724326781452,0.75459,2640.5,2640.4,0.3786]
[1724326782860,0.75459,2640.5,2640.3,2.83619176]
[1724326783158,1.84459,2640.5,2640.3,1.74619176]
[1724326783350,0.37861,2640.4,2640.3,1.74619176]
[1724326783549,0.76251,2640.4,2640.3,0.75871]
[1724326783754,1.14081,2640.4,2640.3,0.3801]
[1724326784052,1.14081,2640.4,2640.2,0.00568408]
[1724326784053,0.37862,2640.3,2640.2,0.00568408]
[1724326784243,1.46862,2640.3,2640.2,0.00568408]
[1724326785349,2.41518,2640.3,2640.2,0.00568408]
[1724326789352,6.20238,2640.3,2640.2,0.00568408]
[1724326789554,9.41018,2640.3,2640.2,0.00568408]
[1724326791261,0.37866,2640.0,2639.8,0.37869]
[1724326791457,0.7363,2639.9,2639.7,3.56123226]
[1724326791658,1.09,2639.8,2639.7,3.93993226]
[1724326792351,1.8126,2639.9,2639.8,0.37869]
[1724326792555,1.4428,2639.9,2639.8,0.37869]
[1724326792753,1.09,2639.9,2639.8,0.37869]
[1724326793072,1.46868,2639.9,2639.8,0.37869]
[1724326793559,1.46868,2639.9,2639.7,0.35343226]
[1724326793857,1.46868,2639.9,2639.7,0.73213226]
[1724326794260,0.37869,2639.8,2639.7,0.73213226]
[1724326795250,2.41543,2639.8,2639.7,0.35343226]
[1724326795455,1.46869,2639.8,2639.7,0.35343226]
[1724326799262,1.09,2639.8,2639.7,0.73214226]
[1724326799663,1.46869,2639.8,2639.7,0.73214226]
[1724326799858,0.00568408,2640.0,2639.9,0.37868]
[1724326800367,1.47434408,2640.0,2639.9,0.37868]
[1724326801073,1.09568408,2640.0,2639.9,0.37868]
[1724326803964,1.47434408,2640.0,2639.9,0.37868]
[1724326804667,1.09568408,2640.0,2639.9,0.37868]
[1724326805770,1.47434408,2640.0,2639.9,0.73788]
[1724326806073,1.47434408,2640.0,2639.9,0.3592]
[1724326807268,1.47434408,2640.0,2639.9,0.73788]
[1724326807975,1.47434408,2640.0,2639.9,0.3592]
[1724326808470,1.09568408,2640.0,2639.9,0.73788]
[1724326808679,0.00568408,2640.0,2639.9,14.77038]
[1724326808876,0.00568408,2640.0,2639.9,12.73368]
[1724326809069,0.00568408,2640.0,2639.9,4.52588]
[1724326809380,0.00568408,2640.0,2639.8,0.98748176]
[1724326809381,1.09,2640.0,2639.8,0.98748176]
[1724326809567,1.09,2640.0,2639.7,1.71962402]
[1724326809762,0.37869,2639.9,2639.7,1.71962402]
[1724326809963,0.37869,2639.9,2639.7,0.73214226]
[1724326810167,0.37869,2639.8,2639.7,4.52014226]
[1724326810369,0.37869,2639.8,2639.7,0.73214226]
[1724326810573,0.37869,2639.8,2639.7,4.52014226]
[1724326810880,0.37869,2639.9,2639.8,0.37869]
[1724326811375,0.37869,2639.9,2639.8,5.15417176]
[1724326812279,1.46867,2640.0,2639.9,0.37868]
[1724326812670,0.37868,2639.9,2639.8,1.36616176]
[1724326812975,0.37868,2639.9,2639.8,3.26032414]
[1724326813169,0.37868,2639.9,2639.8,5.15416176]
[1724326813472,0.37868,2639.9,2639.8,7.04832212]
[1724326813668,1.46867,2640.0,2639.9,0.37868]
[1724326814469,1.46867,2640.0,2639.9,0.98748176]
[1724326814672,1.46867,2640.0,2639.9,1.36616176]
[1724326815977,0.37867,2640.0,2639.9,1.36616176]
[1724326816681,1.80898408,2640.1,2639.9,0.98748176]
[1724326816884,0.00568408,2640.1,2640.0,0.37866]
[1724326817080,0.00568408,2640.1,2640.0,4.36385095]
[1724326819378,0.00568408,2640.1,2640.0,3.37636919]
[1724326819574,0.00568408,2640.1,2640.0,4.36536561]
[1724326819880,0.00568408,2640.1,2640.0,3.37636919]
[1724326820374,0.00568408,2640.1,2640.0,4.85609563]
[1724326820582,0.00568408,2640.1,2640.0,4.36552006]
[1724326820771,0.00568408,2640.1,2640.0,3.37636919]
[1724326821278,1.09568408,2640.1,2640.0,2.47151145]
[1724326821472,1.09568408,2640.1,2640.0,1.74241145]
[1724326821668,1.09568408,2640.1,2639.9,1.47972644]
[1724326821669,0.37866,2640.0,2639.9,0.98915145]
[1724326821885,0.37868,2639.9,2639.8,0.98915145]
[1724326822070,0.37868,2639.9,2639.8,3.76013404]
[1724326822276,0.37868,2639.9,2639.8,6.0684076]
[1724326822785,0.37868,2639.9,2639.8,7.54813404]
[1724326824179,0.37868,2639.9,2639.8,4.13882404]
[1724326824773,0.74277,2640.0,2639.9,0.37868]
[1724326824978,0.00568408,2640.1,2640.0,0.37866]
[1724326825189,0.00568408,2640.1,2640.0,4.1374641]
[1724326825483,0.00568408,2640.1,2640.0,2.6525676]
[1724326825678,0.00568408,2640.1,2640.0,4.13818788]
[1724326826684,0.00568408,2640.1,2640.0,2.6525676]
[1724326827085,1.46864,2640.2,2640.1,0.37865]
[1724326827283,1.46864,2640.2,2640.1,3.75888816]
[1724326828485,1.46864,2640.2,2640.1,3.38023816]
[1724326828685,1.46864,2640.2,2640.1,2.88533287]
[1724326828979,1.46864,2640.2,2640.1,0.99102527]
[1724326829284,3.9025043,2640.2,2640.1,0.99102527]
[1724326829578,3.9025043,2640.2,2640.0,0.99123448]
[1724326829579,1.32528,2640.1,2640.0,0.99123448]
[1724326829786,4.62916215,2640.1,2640.0,0.99125579]
[1724326829974,8.41716215,2640.1,2640.0,0.99125579]
[1724326831787,7.47053215,2640.1,2640.0,0.99125579]
[1724326832980,11.62496215,2640.1,2640.0,0.99125579]
[1724326833182,16.62496215,2640.1,2640.0,0.99125579]
[1724326833380,16.62496215,2640.1,2639.7,1.97780085]
[1724326833382,0.37869,2639.8,2639.7,0.41668805]
[1724326833585,6.16630382,2639.8,2639.7,0.00483226]
[1724326833786,9.95430382,2639.8,2639.7,1.89942863]
[1724326833992,6.16630382,2639.8,2639.7,0.00483226]
[1724326834189,4.67649,2639.8,2639.7,1.89936711]
[1724326835086,4.2978,2639.8,2639.7,1.89930523]
[1724326835484,4.2978,2639.8,2639.7,0.00483226]
[1724326835892,4.67649,2639.8,2639.7,0.00483226]
[1724326836183,8.46449,2639.8,2639.7,0.00483226]
[1724326836389,9.95430382,2639.8,2639.7,0.00483226]
[1724326836798,8.46449,2639.8,2639.7,0.00483226]
[1724326837698,5.25669,2639.8,2639.7,0.00483226]
[1724326837992,8.46449,2639.8,2639.7,0.00483226]
[1724326839195,9.95430382,2639.8,2639.7,0.00483226]
[1724326841089,6.16630382,2639.8,2639.7,0.00483226]
[1724326841292,4.67649,2639.8,2639.7,0.00483226]
[1724326843096,3.2078,2639.8,2639.7,0.00483226]
[1724326843291,0.354,2639.9,2639.8,0.37869]
[1724326843494,1.444,2639.9,2639.8,0.72989]
[1724326843794,1.444,2639.9,2639.8,0.3512]
[1724326844097,1.444,2639.9,2639.8,0.72989]
[1724326844789,1.09,2639.9,2639.8,0.72989]
[1724326845094,1.09,2639.9,2639.8,2.62412334]
[1724326845398,1.09,2639.9,2639.8,0.72989]
[1724326845599,1.09,2639.9,2639.8,6.41214647]
[1724326845792,1.09,2639.9,2639.8,7.89807703]
[1724326845991,1.09,2639.9,2639.8,2.62414647]
[1724326846393,1.09,2639.9,2639.8,4.11007703]
[1724326847800,1.09,2639.9,2639.8,2.62414647]
[1724326847995,1.09,2639.9,2639.8,6.41214647]
[1724326848196,1.09,2639.9,2639.8,2.62414647]
[1724326848502,1.09,2639.9,2639.8,6.41214647]
[1724326848694,1.09,2639.9,2639.8,2.62414647]
[1724326849099,1.09,2639.9,2639.8,2.62418872]
[1724326849304,1.46868,2639.9,2639.8,2.24549872]
[1724326849507,1.46868,2639.9,2639.8,0.3512]
[1724326850400,0.37869,2639.8,2639.7,0.00483226]
[1724326850605,0.75919,2639.8,2639.7,0.00483226]
[1724326851206,0.37869,2639.8,2639.7,1.89923729]
[1724326851809,0.37869,2639.8,2639.7,3.38516785]
[1724326853303,0.37869,2639.8,2639.7,1.89923729]
[1724326853505,0.37869,2639.8,2639.7,0.00483226]
[1724326854398,5.11343,2639.8,2639.7,0.00483226]
[1724326855811,4.16669,2639.8,2639.7,0.00483226]
[1724326856003,0.37869,2639.8,2639.7,0.38354226]
[1724326856613,0.37869,2639.8,2639.7,1.10384226]
[1724326856808,0.37869,2639.8,2639.7,0.72513226]
[1724326857718,0.37869,2639.8,2639.7,0.00483226]
[1724326857902,1.32543,2639.8,2639.7,0.00483226]
[1724326859406,0.37869,2639.8,2639.7,0.00483226]
[1724326860417,1.32542,2639.8,2639.7,0.00483226]
[1724326860708,9.26795,2639.8,2639.7,0.00483226]
[1724326860914,16.62406843,2639.8,2639.7,0.00483226]
[1724326861110,16.62406843,2639.8,2639.7,1e-08]
[1724326861310,14.63765,2639.8,2639.7,1e-08]
[1724326862211,1.32553,2639.6,2639.5,0.00568408]
[1724326862413,3.90381159,2639.6,2639.5,0.00568408]
[1724326862718,7.69261159,2639.6,2639.5,0.00568408]
[1724326863108,7.69261159,2639.6,2639.5,0.00898276]
[1724326863310,6.74580159,2639.6,2639.5,0.00898276]
[1724326865305,5.25752,2639.6,2639.5,0.00898276]
[1724326865501,6.74580159,2639.6,2639.5,0.00898276]
[1724326865716,1.46872,2639.6,2639.5,0.00898276]
[1724326865911,3.13477159,2639.7,2639.5,0.00898276]
[1724326865912,0.348,2639.7,2639.5,0.00898276]
[1724326866109,1.09,2639.6,2639.5,0.00898276]
[1724326866805,1.46872,2639.6,2639.5,0.00898276]
[1724326867414,0.37876,2639.3,2639.2,0.3702]
[1724326867807,1.46875,2639.4,2639.2,0.3702]
[1724326868618,1.47260331,2639.4,2639.2,0.37290981]
[1724326869010,3.58656,2639.3,2639.2,0.37290981]
[1724326869211,0.37876,2639.3,2639.2,0.37290981]
[1724326869908,3.58656,2639.3,2639.2,0.37290981]
[1724326870409,3.94816,2639.3,2639.2,0.37290981]
[1724326871718,0.74036,2639.3,2639.2,0.37290981]
[1724326872319,3.94816,2639.3,2639.2,0.37290981]
[1724326877226,3.58656,2639.3,2639.2,0.37290981]
[1724326879825,4.67656,2639.3,2639.2,0.37290981]
[1724326881123,4.2978,2639.3,2639.2,0.37290981]
[1724326881327,1.09,2639.3,2639.2,0.37290981]
[1724326882612,1.46876,2639.3,2639.2,0.37290981]
[1724326883827,5.62347,2639.3,2639.2,0.00270981]
[1724326884026,10.73568,2639.3,2639.2,0.00270981]
[1724326884222,2.27277,2639.1,2639.0,0.00568408]
[1724326884428,0.37886,2638.6,2638.5,0.3851]
[1724326884622,1.46886,2638.6,2638.5,0.3851]
[1724326885229,1.46886,2638.6,2638.5,0.00305428]
[1724326885230,5.82677,2638.6,2638.5,0.00305428]
[1724326885524,5.25846,2638.6,2638.5,0.00305428]
[1724326886231,6.20563,2638.6,2638.5,0.00305428]
[1724326886427,7.73663,2638.6,2638.5,0.00305428]
[1724326890230,2.99986,2638.6,2638.5,0.00305428]
[1724326890824,6.78946,2638.6,2638.5,0.00305428]
[1724326891036,7.73663,2638.6,2638.5,0.00305428]
[1724326891225,3.94703,2638.6,2638.5,0.00305428]
[1724326891823,6.78946,2638.6,2638.5,0.00305428]
[1724326895230,2.99986,2638.6,2638.5,0.00305428]
[1724326898139,3.94703,2638.6,2638.5,0.00305428]
[1724326903737,4.31243,2638.6,2638.5,0.00305428]
[1724326905247,7.52023,2638.6,2638.5,0.00305428]
[1724326906445,8.46742,2638.6,2638.5,8.018e-05]
[1724326908649,6.93842,2638.6,2638.5,8.018e-05]
[1724326918647,5.99123,2638.6,2638.5,8.018e-05]
[1724326924661,1.32616,2638.4,2638.3,0.00568408]
[1724326924859,2.41816,2638.4,2638.3,0.00568408]
[1724326925150,6.20856,2638.4,2638.3,0.00568408]
[1724326925452,2.41816,2638.4,2638.3,0.00568408]
[1724326925658,2.41816,2638.4,2638.3,0.00969634]
[1724326926445,1.4709,2638.4,2638.3,0.00969634]
[1724326929054,2.95848989,2638.4,2638.3,0.00969634]
[1724326930054,3.45527546,2638.4,2638.3,1.90528159]
[1724326930242,7.24567546,2638.4,2638.3,1.90528159]
[1724326930850,8.19293546,2638.4,2638.3,0.00969634]
[1724326931159,8.19293546,2638.4,2638.2,1.48593056]
[1724326931160,1.32622,2638.3,2638.0,1.97296859]
[1724326931458,0.37897,2637.9,2637.8,1.83975902]
[1724326931760,3.58677,2637.9,2637.8,3.73561194]
[1724326932257,3.58677,2637.9,2637.8,0.35245291]
[1724326933354,5.07614099,2637.9,2637.8,0.35245291]
[1724326934661,3.58677,2637.9,2637.8,0.35245291]
[1724326934852,4.53421,2637.9,2637.8,0.35245291]
[1724326935055,10.67865328,2637.9,2637.8,0.00455291]
[1724326936363,8.69121,2637.9,2637.8,0.00455291]
[1724326937862,0.379,2637.7,2637.6,0.00378938]
[1724326938061,2.81359314,2637.7,2637.6,0.00378938]
[1724326938863,2.81359314,2637.7,2637.6,0.00768237]
[1724326939164,2.81322752,2637.7,2637.6,0.00768237]
[1724326939362,0.37907,2637.2,2637.1,0.374]
[1724326939669,4.67887,2637.2,2637.1,0.7495]
[1724326939867,4.67887,2637.2,2637.1,4.5415]
[1724326940162,4.67887,2637.2,2637.1,0.7495]
[1724326940463,4.30337085,2637.2,2636.7,1.49185902]
[1724326940665,0.37915,2636.7,2636.6,5.67785902]
[1724326940866,0.37915,2636.7,2636.6,4.186]
[1724326941667,0.37915,2636.7,2636.6,4.19024818]
[1724326941965,1.4428,2636.8,2636.6,4.19024818]
[1724326942159,0.37915,2636.7,2636.6,4.19024818]
[1724326943766,0.37915,2636.7,2636.6,4.56094818]
[1724326944558,0.00568408,2637.4,2637.1,0.94773]
[1724326944758,3.2078,2637.7,2637.6,0.37902]
[1724326944759,4.2998,2637.7,2637.6,0.37902]
[1724326945067,3.2078,2638.3,2637.6,9.8832]
[1724326945255,1.092,2637.8,2637.7,0.379]
[1724326945456,1.092,2637.8,2637.7,4.1702]
[1724326945661,1.0966096,2637.8,2637.7,9.1702]
[1724326946167,0.00568408,2638.0,2637.9,0.37897]
[1724326946365,0.00568408,2638.0,2637.9,1.47097]
[1724326946666,0.00568408,2638.0,2637.9,9.17017]
[1724326946869,0.00568408,2638.0,2637.9,9.51827]
[1724326947258,0.00860155,2638.0,2637.9,9.51827]
[1724326948159,4.2998,2638.3,2638.2,0.37893]
[1724326948565,3.2078,2638.3,2638.2,4.16933]
[1724326949064,3.21156653,2638.3,2638.2,4.16933]
[1724326949667,3.21156653,2638.3,2638.2,3.7904]
[1724326950570,3.21156653,2638.3,2638.2,4.16933]
[1724326950756,3.21156653,2638.3,2638.2,3.7904]
[1724326951962,3.21156653,2638.3,2638.2,4.16933]
[1724326952668,0.00376653,2638.3,2638.2,4.16933]
[1724326952865,0.00568408,2638.5,2638.4,0.3789]
[1724326953060,0.00568408,2638.5,2638.4,4.1693]
[1724326953658,0.37882,2639.0,2638.4,11.9982]
[1724326953859,0.38325082,2639.0,2638.6,0.37887]
[1724326954065,0.38325082,2639.0,2638.7,0.3837]
[1724326954472,0.38325082,2639.0,2638.7,4.1733]
[1724326954473,0.00443082,2639.0,2638.7,4.1733]
[1724326954872,0.00443082,2639.0,2638.8,0.37884]
[1724326955262,0.00443082,2639.0,2638.8,4.16844]
[1724326955462,0.00443082,2639.0,2638.8,3.7896]
[1724326955663,0.00443082,2639.0,2638.8,4.16844]
[1724326956875,0.00443082,2639.0,2638.8,3.7896]
[1724326957477,0.00443082,2639.0,2638.7,0.3837]
[1724326957669,3.2078,2638.9,2638.7,0.3837]
[1724326958266,3.2078,2638.9,2638.7,4.1733]
[1724326958578,3.2078,2638.9,2638.7,0.3837]
[1724326959377,3.58664,2638.9,2638.7,0.3837]
[1724326959874,0.37886,2638.7,2638.6,0.00477082]
[1724326960772,2.99885,2638.8,2638.6,0.00477082]
[1724326961375,2.62,2638.8,2638.6,0.00477082]
[1724326961874,2.99885,2638.8,2638.6,0.00477082]
[1724326963177,2.62,2638.8,2638.6,0.00477082]
[1724326963876,2.99885,2638.8,2638.6,0.00477082]
[1724326964576,2.62,2638.8,2638.6,0.00477082]
[1724326967273,2.99884,2638.8,2638.6,0.00477082]
[1724326967472,2.62,2638.8,2638.6,0.00477082]
[1724326968171,2.62,2638.8,2638.6,0.38364082]
[1724326968575,3.2078,2638.9,2638.6,0.38364082]
[1724326968877,3.58663,2638.9,2638.6,0.00477082]
[1724326969378,3.2078,2638.9,2638.6,0.38364082]
[1724326970365,0.37803082,2639.0,2638.7,0.37886]
[1724326970566,0.37803082,2639.0,2638.8,0.37884]
[1724326970874,0.00443082,2639.0,2638.8,0.37884]
[1724326971479,0.00443082,2639.0,2638.7,0.37885]
[1724326971778,0.00443082,2639.0,2638.8,0.37884]
[1724326974470,0.38325082,2639.0,2638.7,0.74735]
[1724326974774,0.38325082,2639.0,2638.7,0.3685]
[1724326975166,0.38325082,2639.0,2638.7,0.74736]
[1724326975366,0.38325082,2639.0,2638.6,0.00477082]
[1724326975367,0.00443082,2639.0,2638.6,0.00477082]
[1724326975570,0.37885,2638.8,2638.6,0.00477082]
[1724326975774,0.37885,2638.8,2638.6,3.79437082]
[1724326975972,1.10365,2638.8,2638.6,3.79437082]
[1724326976473,0.37886,2638.7,2638.6,0.00477082]
[1724326976668,1.10366,2638.8,2638.6,0.00477082]
[1724326976871,1.10366,2638.8,2638.6,0.38364082]
[1724326977778,0.74746,2638.8,2638.7,0.37886]